fUST/lending_fUST_20250419
["ID","MTS","AMOUNT","RATE_DAILY","PERIOD"]
[358361934,1744995046418,-2380.99776022,0.00018031,2]
[358361935,1744995046427,-1119.97042808,0.00018031,2]
[358361937,1744995121208,1000.0,0.00017925,2]
[358361969,1744995297143,790.44040456,0.00018,2]
[358361970,1744995313827,564.84037976,0.0001793,2]
[358361975,1744995544712,2578.99038,0.00017469,2]
[358361977,1744995555769,171.0904105,0.00017048,2]
[358361980,1744995637794,632.35232368,0.00017938,2]
[358362006,1744995842909,197.8314243,0.00017132,2]
[358362013,1744995979224,505.88185892,0.00017938,2]
[358362014,1744996003526,198.064853,0.00017394,2]
[358362037,1744996100120,201.5573509,0.00017131,2]
[358362055,1744996232336,-151.0,0.00018012,2]
[358362056,1744996232346,-300.0,0.0001802,2]
[358362057,1744996232357,-300.0,0.0001802,2]
[358362058,1744996232366,-300.0,0.0001802,2]
[358362059,1744996232375,-394.49945856,0.00018021,2]
[358362060,1744996232385,-512.60962405,0.00018021,2]
[358362061,1744996232394,-500.0,0.00018021,2]
[358362062,1744996232404,-336.28891679,0.00018021,2]
[358362063,1744996232413,-500.0,0.00018021,2]
[358362064,1744996232423,-512.60962405,0.00018021,2]
[358362065,1744996232432,-500.0,0.00018021,2]
[358362066,1744996232442,-500.0,0.00018021,2]
[358362067,1744996232451,-512.60962405,0.00018021,2]
[358362068,1744996232461,-500.0,0.00018021,2]
[358362070,1744996232470,-512.60962405,0.00018021,2]
[358362071,1744996232479,-500.0,0.00018021,2]
[358362072,1744996232489,-512.60962405,0.00018021,2]
[358362073,1744996232499,-500.0,0.00018021,2]
[358362074,1744996232508,-512.60962405,0.00018021,2]
[358362075,1744996232517,-500.0,0.00018021,2]
[358362076,1744996232527,-500.0,0.00018021,2]
[358362077,1744996232536,-512.60962405,0.00018021,2]
[358362078,1744996232545,-500.0,0.00018021,2]
[358362079,1744996232555,-512.60962405,0.00018021,2]
[358362080,1744996232564,-500.0,0.00018021,2]
[358362081,1744996232573,-500.0,0.00018021,2]
[358362082,1744996232583,-512.60962405,0.00018021,2]
[358362083,1744996232593,-500.0,0.00018021,2]
[358362084,1744996232603,-650.0,0.00018021,2]
[358362085,1744996232612,-384.16667407,0.00018021,2]
[358362086,1744996232625,-115.83332593,0.00018021,2]
[358362087,1744996232635,-427.32264074,0.00018021,2]
[358362088,1744996232828,-85.28698331,0.00018021,2]
[358362089,1744996232838,-170.61832921,0.00018021,2]
[358362134,1744996238477,-293.33861973,0.00018021,2]
[358362146,1744996238584,-13.04305106,0.00018021,2]
[358362148,1744996238594,-512.60962405,0.00018021,2]
[358362150,1744996238603,-512.60962405,0.00018021,2]
[358362153,1744996238613,-500.0,0.00018021,2]
[358362154,1744996238622,-512.60962405,0.00018021,2]
[358362156,1744996238632,-500.0,0.00018021,2]
[358362158,1744996238641,-512.60962405,0.00018021,2]
[358362161,1744996238650,-500.0,0.00018021,2]
[358362163,1744996238660,-512.60962405,0.00018021,2]
[358362164,1744996238668,-500.0,0.00018021,2]
[358362166,1744996238678,-512.60962405,0.00018021,2]
[358362168,1744996238687,-500.0,0.00018021,2]
[358362171,1744996238697,-512.60962405,0.00018021,2]
[358362173,1744996238708,-512.60962405,0.00018021,2]
[358362175,1744996238717,-500.0,0.00018021,2]
[358362177,1744996238730,-512.60962405,0.00018021,2]
[358362180,1744996238740,-500.0,0.00018021,2]
[358362182,1744996238749,-512.60962405,0.00018021,2]
[358362184,1744996238759,-512.60962405,0.00018021,2]
[358362186,1744996238768,-500.0,0.00018021,2]
[358362188,1744996238778,-512.60962405,0.00018021,2]
[358362190,1744996238787,-512.60962405,0.00018021,2]
[358362192,1744996238797,-500.0,0.00018021,2]
[358362194,1744996238806,-512.60962405,0.00018021,2]
[358362196,1744996238815,-512.60962405,0.00018021,2]
[358362198,1744996238825,-512.60962405,0.00018021,2]
[358362200,1744996238836,-512.60962405,0.00018021,2]
[358362202,1744996238846,-512.60962405,0.00018021,2]
[358362204,1744996238855,-512.60962405,0.00018021,2]
[358362206,1744996238865,-512.60962405,0.00018021,2]
[358362208,1744996238874,-512.60962405,0.00018021,2]
[358362210,1744996238883,-512.60962405,0.00018021,2]
[358362212,1744996238893,-512.60962405,0.00018021,2]
[358362214,1744996238902,-512.60962405,0.00018021,2]
[358362216,1744996238912,-512.60962405,0.00018021,2]
[358362218,1744996238921,-512.60962405,0.00018021,2]
[358362220,1744996238930,-512.60962405,0.00018021,2]
[358362222,1744996238939,-512.60962405,0.00018021,2]
[358362224,1744996238948,-512.60962405,0.00018021,2]
[358362226,1744996238957,-512.60962405,0.00018021,2]
[358362228,1744996238966,-512.60962405,0.00018021,2]
[358362230,1744996238975,-512.60962405,0.00018021,2]
[358362232,1744996238985,-512.60962405,0.00018021,2]
[358362234,1744996238996,-512.60962405,0.00018021,2]
[358362236,1744996239006,-512.60962405,0.00018021,2]
[358362238,1744996239017,-512.60962405,0.00018021,2]
[358362240,1744996239027,-512.60962405,0.00018021,2]
[358362242,1744996239036,-512.60962405,0.00018021,2]
[358362244,1744996239045,-512.60962405,0.00018021,2]
[358362246,1744996239055,-193.14288463,0.00018021,2]
[358362248,1744996239064,-696.15391902,0.00018021,2]
[358362250,1744996239074,-696.15391902,0.00018021,2]
[358362252,1744996239083,-696.15391902,0.00018021,2]
[358362254,1744996239092,-696.15391902,0.00018021,2]
[358362256,1744996239102,-696.15391902,0.00018021,2]
[358362258,1744996239111,-696.15391902,0.00018021,2]
[358362259,1744996239120,-696.15391902,0.00018021,2]
[358362261,1744996239129,-696.15391902,0.00018021,2]
[358362263,1744996239139,-696.15391902,0.00018021,2]
[358362265,1744996239148,-696.15391902,0.00018021,2]
[358362266,1744996239157,-696.15391902,0.00018021,2]
[358362268,1744996239166,-696.15391902,0.00018021,2]
[358362269,1744996239175,-696.15391902,0.00018021,2]
[358362270,1744996239184,-696.15391902,0.00018021,2]
[358362271,1744996239194,-696.15391902,0.00018021,2]
[358362272,1744996239203,-696.15391902,0.00018021,2]
[358362273,1744996239214,-696.15391902,0.00018021,2]
[358362274,1744996239223,-696.15391902,0.00018021,2]
[358362275,1744996239232,-696.15391902,0.00018021,2]
[358362276,1744996239242,-500.0,0.00018021,2]
[358362277,1744996239251,-696.15391902,0.00018021,2]
[358362278,1744996239260,-696.15391902,0.00018021,2]
[358362279,1744996239272,-500.0,0.00018021,2]
[358362280,1744996239281,-696.15391902,0.00018021,2]
[358362281,1744996239291,-500.0,0.00018021,2]
[358362282,1744996239300,-696.15391902,0.00018021,2]
[358362283,1744996239309,-696.15391902,0.00018021,2]
[358362284,1744996239319,-696.15391902,0.00018021,2]
[358362285,1744996239328,-696.15391902,0.00018021,2]
[358362287,1744996239338,-696.15391902,0.00018021,2]
[358362288,1744996239347,-696.15391902,0.00018021,2]
[358362289,1744996239356,-696.15391902,0.00018021,2]
[358362290,1744996239366,-683.49657502,0.00018021,2]
[358362291,1744996239374,-683.49657502,0.00018021,2]
[358362292,1744996239384,-683.49657502,0.00018021,2]
[358362293,1744996239393,-683.49657502,0.00018021,2]
[358362294,1744996239402,-683.49657502,0.00018021,2]
[358362295,1744996239411,-683.49657502,0.00018021,2]
[358362296,1744996239420,-683.49657502,0.00018021,2]
[358362297,1744996239429,-683.49657502,0.00018021,2]
[358362298,1744996239439,-683.49657502,0.00018021,2]
[358362299,1744996239448,-683.49657502,0.00018021,2]
[358362300,1744996239457,-683.49657502,0.00018021,2]
[358362301,1744996239466,-839.29847495,0.00018038,3]
[358362302,1744996239476,-160.0,0.00018038,3]
[358362303,1744996239485,-160.0,0.00018038,3]
[358362304,1744996239495,-12559.7366029,0.00018038,3]
[358362305,1744996239504,-500.0,0.000181,2]
[358362306,1744996239514,-194.80074453,0.000181,2]
[358362307,1744996239523,-3252.5551552,0.00018366,2]
[358362308,1744996239533,-500.0,0.000186,2]
[358362309,1744996239542,-500.0,0.000186,2]
[358362310,1744996239551,-500.90416285,0.000186,2]
[358362311,1744996239560,-500.0,0.000186,2]
[358362312,1744996239570,-500.0,0.000186,2]
[358362313,1744996239579,-500.0,0.000186,2]
[358362314,1744996239589,-500.0,0.000186,2]
[358362315,1744996239598,-500.0,0.000186,2]
[358362316,1744996239607,-500.0,0.000186,2]
[358362317,1744996239616,-500.0,0.000186,2]
[358362318,1744996239625,-500.0,0.000186,2]
[358362319,1744996239634,-500.0,0.000186,2]
[358362320,1744996239643,-500.0,0.000186,2]
[358362321,1744996239652,-500.0,0.000186,2]
[358362322,1744996239662,-500.0,0.000186,2]
[358362323,1744996239671,-500.0,0.000186,2]
[358362324,1744996239680,-500.0,0.000186,2]
[358362325,1744996239689,-500.0,0.000186,2]
[358362326,1744996239698,-500.0,0.000186,2]
[358362327,1744996239707,-501.06588407,0.000186,2]
[358362328,1744996239716,-539.02075636,0.000186,2]
[358362329,1744996239726,-226.15726378,0.000186,2]
[358362330,1744996239735,-500.0,0.000186,2]
[358362331,1744996239744,-500.0,0.000186,2]
[358362332,1744996239754,-500.0,0.000186,2]
[358362333,1744996239763,-500.0,0.000186,2]
[358362334,1744996239773,-500.0,0.00018767,2]
[358362335,1744996239782,-500.0,0.00018767,2]
[358362336,1744996239791,-500.0,0.00018767,2]
[358362337,1744996239800,-500.0,0.00018767,2]
[358362338,1744996239810,-565.2138451,0.00018849,2]
[358362339,1744996239819,-316.39311826,0.00018874,2]
[358362340,1744996239828,-491.44871008,0.000189,2]
[358362341,1744996239837,-1824.5724399,0.00018904,2]
[358362342,1744996239847,-505.88185891,0.00018908,2]
[358362343,1744996239856,-151.0,0.00019178,2]
[358362344,1744996239865,-300.0,0.00019178,2]
[358362345,1744996239874,-156.587,0.00019233,2]
[358362346,1744996239883,-171.77755204,0.00019288,2]
[358362347,1744996239892,-1448.3237554,0.000193,2]
[358362348,1744996239902,-151.0,0.00019381,2]
[358362349,1744996239911,-420.0,0.00019662,2]
[358362351,1744996239921,-153.0,0.00019666,2]
[358362352,1744996239931,-154.5594933,0.00019666,2]
[358362353,1744996239941,-3025.3,0.00019666,2]
[358362354,1744996239950,-3025.3,0.00019666,2]
[358362355,1744996239960,-3025.3,0.00019666,2]
[358362356,1744996239969,-3025.3,0.00019666,2]
[358362357,1744996239978,-153.0,0.00019666,2]
[358362358,1744996239988,-178.1626268,0.00019666,2]
[358362359,1744996239997,-153.0,0.00019704,2]
[358362360,1744996240007,-420.0,0.00019793,2]
[358362361,1744996240017,-1448.32375528,0.00019831,2]
[358362362,1744996240026,-505.88185891,0.00019878,2]
[358362363,1744996240035,-3731.70313421,0.0002,2]
[358362365,1744996240045,-2008.0,0.0002,8]
[358362366,1744996240055,-10961.30568555,0.00020068,3]
[358362367,1744996240065,-26960.33721245,0.00020068,2]
[358362368,1744996240075,-160.0,0.0002007,2]
[358362369,1744996240084,-12559.7366029,0.0002007,2]
[358362370,1744996240094,-160.0,0.0002007,2]
[358362371,1744996240104,-160.0,0.0002007,2]
[358362372,1744996240113,-160.0,0.0002007,2]
[358362373,1744996240123,-420.40766787,0.0002007,2]
[358362374,1744996240132,-839.29847495,0.0002007,2]
[358362375,1744996240142,-153.0,0.00020304,2]
[358362376,1744996240152,-2822.9,0.00020493,2]
[358362377,1744996240161,-2822.9,0.00020493,2]
[358362378,1744996240171,-2822.9,0.00020493,2]
[358362379,1744996240180,-2822.9,0.00020493,2]
[358362380,1744996240189,-300.0,0.0002075,2]
[358362381,1744996240199,-1448.32375528,0.00020762,2]
[358362382,1744996240208,-600.0,0.00020822,2]
[358362383,1744996240218,-505.88185891,0.00020847,2]
[358362384,1744996240227,-664.77,0.000209,2]
[358362385,1744996240237,-492.43932044,0.0002099,2]
[358362386,1744996240246,-300.83333432,0.00021142,2]
[358362387,1744996240255,-151.0,0.00021311,2]
[358362388,1744996240266,-151.0,0.00021311,2]
[358362389,1744996240278,-160.895195,0.00021311,2]
[358362390,1744996240289,-160.895195,0.00021311,2]
[358362391,1744996240297,-151.0,0.00021311,2]
[358362392,1744996240306,-1541.76181229,0.00021311,2]
[358362393,1744996240316,-587.0,0.00021452,2]
[358362394,1744996240325,-151.0,0.00021458,2]
[358362395,1744996240335,-500.0,0.00021479,2]
[358362396,1744996240344,-500.0,0.00021479,2]
[358362397,1744996240355,-500.0,0.00021479,2]
[358362399,1744996240365,-500.0,0.00021479,2]
[358362401,1744996240374,-500.0,0.00021479,2]
[358362403,1744996240384,-500.0,0.00021479,2]
[358362405,1744996240393,-500.0,0.00021479,2]
[358362407,1744996240403,-500.0,0.00021479,2]
[358362409,1744996240412,-500.0,0.00021479,2]
[358362411,1744996240423,-500.0,0.00021479,2]
[358362413,1744996240432,-500.0,0.00021479,2]
[358362415,1744996240442,-500.0,0.00021479,2]
[358362417,1744996240452,-500.0,0.00021479,2]
[358362419,1744996240461,-500.0,0.00021479,2]
[358362421,1744996240471,-500.0,0.00021479,2]
[358362423,1744996240480,-500.0,0.00021479,2]
[358362425,1744996240489,-500.0,0.00021479,2]
[358362427,1744996240499,-461.20542081,0.00021479,2]
[358362429,1744996240508,-151.0,0.00021479,2]
[358362431,1744996240518,-151.0,0.00021479,2]
[358362433,1744996240527,-151.0,0.00021479,2]
[358362435,1744996240537,-151.0,0.00021479,2]
[358362437,1744996240546,-179.118955,0.00021479,2]
[358362439,1744996240555,-179.118955,0.00021479,2]
[358362441,1744996240565,-151.0,0.00021479,2]
[358362443,1744996240574,-235.568032,0.00021479,2]
[358362445,1744996240583,-188.456045,0.00021479,2]
[358362447,1744996240592,-151.0,0.00021479,2]
[358362449,1744996240602,-151.0,0.00021479,2]
[358362451,1744996240611,-199.522848,0.00021479,2]
[358362453,1744996240620,-658.7550366,0.00021506,2]
[358362455,1744996240629,-2703.90292499,0.00021598,2]
[358362457,1744996240639,-151.584004,0.00021599,2]
[358362459,1744996240649,-155.81739,0.00021599,2]
[358362461,1744996240658,-175.070208,0.00021599,2]
[358362463,1744996240668,-151.0,0.00021599,2]
[358362465,1744996240677,-151.0,0.00021599,2]
[358362467,1744996240687,-76115.35295,0.000216,2]
[358362469,1744996240697,-151.0,0.000216,2]
[358362471,1744996240706,-151.0,0.000216,2]
[358362473,1744996240715,-152.349804,0.000216,2]
[358362491,1744996240863,-281.441121,0.000216,2]
[358362493,1744996240873,-151.0,0.000216,2]
[358362495,1744996240882,-151.0,0.000216,2]
[358362497,1744996240891,-151.0,0.000216,2]
[358362499,1744996240901,-151.0,0.000216,2]
[358362501,1744996240910,-151.0,0.000216,2]
[358362503,1744996240919,-180.428846,0.000216,2]
[358362505,1744996240928,-151.0,0.000216,2]
[358362507,1744996240939,-151.0,0.000216,2]
[358362509,1744996240948,-152.078737,0.000216,2]
[358362511,1744996240957,-151.0,0.000216,2]
[358362513,1744996240966,-151.0,0.000216,2]
[358362515,1744996240975,-160.895195,0.000216,2]
[358362517,1744996240985,-160.895195,0.000216,2]
[358362519,1744996240994,-156.894833,0.000216,2]
[358362521,1744996241003,-272.092896,0.000216,2]
[358362523,1744996241012,-151.0,0.000216,2]
[358362525,1744996241021,-179.118955,0.000216,2]
[358362527,1744996241030,-179.118955,0.000216,2]
[358362529,1744996241039,-151.0,0.000216,2]
[358362531,1744996241049,-151.0,0.000216,2]
[358362533,1744996241058,-151.0,0.000216,2]
[358362535,1744996241067,-1448.32375528,0.00021693,3]
[358362537,1744996241077,-587.0,0.0002174,2]
[358362539,1744996241086,-200.0,0.000218,2]
[358362541,1744996241095,-200.0,0.000218,2]
[358362543,1744996241104,-177.38996013,0.00021816,2]
[358362545,1744996241113,-183.66314054,0.00021816,2]
[358362547,1744996241122,-2283.493,0.00021817,2]
[358362549,1744996241132,-151.0,0.00021817,120]
[358362551,1744996241141,-505.88185891,0.00021817,2]
[358362553,1744996241151,-188.139824,0.00021917,2]
[358362555,1744996241160,-151.0,0.00021917,2]
[358362557,1744996241170,-201.01350009,0.00021917,2]
[358362559,1744996241179,-502.04018792,0.00021917,2]
[358362561,1744996241188,-500.0,0.00021917,2]
[358362563,1744996241198,-502.43061988,0.00021917,2]
[358362565,1744996241208,-546.28627753,0.00021917,2]
[358362567,1744996241218,-500.0,0.00021917,2]
[358362569,1744996241227,-501.85862464,0.00021917,2]
[358362571,1744996241236,-500.0,0.00021917,2]
[358362573,1744996241246,-155.859775,0.00021917,2]
[358362576,1744996241255,-500.0,0.00021917,2]
[358362578,1744996241265,-500.0,0.00021917,2]
[358362580,1744996241278,-500.0,0.00021917,2]
[358362582,1744996241288,-500.0,0.00021917,2]
[358362584,1744996241298,-500.0,0.00021917,2]
[358362586,1744996241307,-500.0,0.00021917,2]
[358362588,1744996241316,-500.0,0.00021917,2]
[358362590,1744996241325,-502.19834044,0.00021917,2]
[358362592,1744996241334,-500.0,0.00021917,2]
[358362594,1744996241344,-557.22487156,0.00021917,2]
[358362596,1744996241353,-500.0,0.00021917,2]
[358362598,1744996241362,-501.88928147,0.00021917,2]
[358362600,1744996241372,-500.9285686,0.00021917,2]
[358362602,1744996241381,-502.80354164,0.00021917,2]
[358362604,1744996241391,-610.95,0.00021917,2]
[358362606,1744996241400,-511.29108282,0.00021917,2]
[358362608,1744996241415,-184.88105423,0.00021917,2]
[358362610,1744996241429,-500.0,0.00021917,2]
[358362612,1744996241438,-503.07814785,0.00021917,2]
[358362614,1744996241447,-500.0,0.00021917,2]
[358362616,1744996241456,-500.0,0.00021917,2]
[358362618,1744996241466,-500.0,0.00021917,2]
[358362620,1744996241475,-203.4994943,0.00021917,2]
[358362622,1744996241484,-509.14929082,0.00021917,2]
[358362623,1744996241493,-511.17129175,0.00021917,2]
[358362624,1744996241503,-500.0,0.00021917,2]
[358362625,1744996241511,-500.0,0.00021917,2]
[358362626,1744996241520,-500.0,0.00021917,2]
[358362627,1744996241529,-502.78480677,0.00021917,2]
[358362628,1744996241538,-501.16256869,0.00021917,2]
[358362629,1744996241547,-501.15131266,0.00021917,2]
[358362630,1744996241556,-715.76,0.00021917,2]
[358362631,1744996241565,-500.0,0.00021917,2]
[358362632,1744996241573,-500.0,0.00021917,2]
[358362633,1744996241582,-500.0,0.00021917,2]
[358362634,1744996241591,-505.7913216,0.00021917,2]
[358362635,1744996241601,-500.0,0.00021917,2]
[358362636,1744996241610,-500.0,0.00021917,2]
[358362637,1744996241619,-500.0,0.00021917,2]
[358362639,1744996241628,-500.84192252,0.00021917,2]
[358362641,1744996241637,-501.93071301,0.00021917,2]
[358362643,1744996241646,-500.0,0.00021917,2]
[358362646,1744996241656,-500.0,0.00021917,2]
[358362648,1744996241665,-500.0,0.00021917,2]
[358362650,1744996241674,-503.88441665,0.00021917,2]
[358362651,1744996241683,-500.0,0.00021917,2]
[358362654,1744996241693,-500.0,0.00021917,2]
[358362656,1744996241703,-500.0,0.00021917,2]
[358362658,1744996241712,-500.0,0.00021917,2]
[358362660,1744996241721,-500.0,0.00021917,2]
[358362662,1744996241731,-500.0,0.00021917,2]
[358362664,1744996241740,-500.0,0.00021917,2]
[358362666,1744996241749,-501.52899075,0.00021917,2]
[358362668,1744996241759,-500.0,0.00021917,2]
[358362670,1744996241768,-500.0,0.00021917,2]
[358362672,1744996241778,-500.0,0.00021917,2]
[358362674,1744996241787,-500.0,0.00021917,2]
[358362676,1744996241796,-670.63,0.00021917,2]
[358362678,1744996241807,-500.0,0.00021917,2]
[358362680,1744996241816,-500.0,0.00021917,2]
[358362682,1744996241825,-500.0,0.00021917,2]
[358362684,1744996241835,-500.0,0.00021917,2]
[358362686,1744996241844,-532.15594938,0.00021917,2]
[358362688,1744996241854,-500.0,0.00021917,2]
[358362690,1744996241863,-500.0,0.00021917,2]
[358362692,1744996241872,-241.05423838,0.00021917,2]
[358362694,1744996241881,-500.0,0.00021917,2]
[358362696,1744996241891,-500.0,0.00021917,2]
[358362698,1744996241900,-557.21,0.00021917,2]
[358362700,1744996241910,-500.0,0.00021917,2]
[358362702,1744996241919,-500.0,0.00021917,2]
[358362704,1744996241928,-500.0,0.00021917,2]
[358362706,1744996241938,-500.0,0.00021917,2]
[358362708,1744996241947,-500.0,0.00021917,2]
[358362710,1744996241956,-500.0,0.00021917,2]
[358362712,1744996241966,-500.0,0.00021917,2]
[358362714,1744996241975,-500.0,0.00021917,2]
[358362716,1744996241984,-500.0,0.00021917,2]
[358362718,1744996241996,-500.0,0.00021917,2]
[358362720,1744996242006,-502.90986223,0.00021917,2]
[358362722,1744996242015,-501.83522365,0.00021917,2]
[358362724,1744996242025,-500.0,0.00021917,2]
[358362726,1744996242034,-508.7135608,0.00021917,2]
[358362728,1744996242043,-500.0,0.00021917,2]
[358362730,1744996242053,-500.0,0.00021917,2]
[358362732,1744996242063,-502.60424275,0.00021917,2]
[358362734,1744996242072,-1206.88,0.00021917,2]
[358362736,1744996242082,-500.0,0.00021917,2]
[358362739,1744996242092,-500.0,0.00021917,2]
[358362741,1744996242101,-770.5,0.00021917,2]
[358362743,1744996242111,-628.56,0.00021917,2]
[358362745,1744996242120,-504.81158445,0.00021917,2]
[358362746,1744996242130,-500.0,0.00021917,2]
[358362749,1744996242141,-598.01314208,0.00021917,2]
[358362751,1744996242150,-151.0,0.00021917,2]
[358362753,1744996242159,-151.0,0.00021917,2]
[358362755,1744996242169,-523.0,0.00021917,2]
[358362757,1744996242178,-501.39477067,0.00021917,2]
[358362759,1744996242188,-500.0,0.00021917,2]
[358362761,1744996242197,-501.24748055,0.00021917,2]
[358362763,1744996242207,-500.0,0.00021917,2]
[358362765,1744996242216,-500.0,0.00021917,2]
[358362767,1744996242226,-500.0,0.00021917,2]
[358362769,1744996242235,-500.0,0.00021917,2]
[358362771,1744996242244,-586.72,0.00021917,2]
[358362773,1744996242253,-537.56,0.00021917,2]
[358362775,1744996242263,-500.0,0.00021917,2]
[358362777,1744996242275,-502.21177862,0.00021917,2]
[358362779,1744996242286,-500.0,0.00021917,2]
[358362781,1744996242295,-500.0,0.00021917,2]
[358362783,1744996242306,-500.0,0.00021917,2]
[358362785,1744996242316,-503.61866688,0.00021917,2]
[358362787,1744996242325,-500.0,0.00021917,2]
[358362789,1744996242334,-500.0,0.00021917,2]
[358362791,1744996242343,-500.0,0.00021917,2]
[358362793,1744996242353,-500.0,0.00021917,2]
[358362795,1744996242362,-500.0,0.00021917,2]
[358362797,1744996242372,-1033.83,0.00021917,2]
[358362799,1744996242381,-500.0,0.00021917,2]
[358362801,1744996242391,-837.73,0.00021917,2]
[358362803,1744996242400,-500.0,0.00021917,2]
[358362805,1744996242409,-500.0,0.00021917,2]
[358362807,1744996242418,-551.64,0.00021917,2]
[358362809,1744996242427,-500.0,0.00021917,2]
[358362811,1744996242437,-500.0,0.00021917,2]
[358362813,1744996242446,-500.0,0.00021917,2]
[358362815,1744996242456,-500.0,0.00021917,2]
[358362817,1744996242465,-504.95244246,0.00021917,2]
[358362819,1744996242475,-500.0,0.00021917,2]
[358362821,1744996242484,-500.0,0.00021917,2]
[358362823,1744996242493,-500.0,0.00021917,2]
[358362825,1744996242503,-500.0,0.00021917,2]
[358362827,1744996242512,-604.08,0.00021917,2]
[358362829,1744996242521,-500.0,0.00021917,2]
[358362831,1744996242531,-1361.86,0.00021917,2]
[358362833,1744996242540,-500.0,0.00021917,2]
[358362835,1744996242550,-963.84,0.00021917,2]
[358362837,1744996242559,-500.0,0.00021917,2]
[358362839,1744996242568,-500.0,0.00021917,2]
[358362841,1744996242578,-500.0,0.00021917,2]
[358362843,1744996242587,-500.0,0.00021917,2]
[358362845,1744996242597,-504.99692857,0.00021917,2]
[358362847,1744996242607,-504.94770746,0.00021917,2]
[358362849,1744996242617,-500.0,0.00021917,2]
[358362851,1744996242626,-500.0,0.00021917,2]
[358362853,1744996242635,-500.0,0.00021917,2]
[358362855,1744996242645,-500.0,0.00021917,2]
[358362857,1744996242655,-500.0,0.00021917,2]
[358362859,1744996242664,-208.320136,0.00021917,2]
[358362861,1744996242673,-500.0,0.00021917,2]
[358362863,1744996242683,-500.0,0.00021917,2]
[358362865,1744996242692,-430.55440587,0.00021917,2]
[358362867,1744996242703,-500.0,0.00021917,2]
[358362869,1744996242713,-500.0,0.00021917,2]
[358362871,1744996242722,-500.0,0.00021917,2]
[358362873,1744996242732,-151.0,0.00021917,2]
[358362875,1744996242743,-1131.8,0.00021917,2]
[358362877,1744996242752,-151.0,0.00021917,2]
[358362879,1744996242761,-500.0,0.00021917,2]
[358362881,1744996242772,-151.0,0.00021917,2]
[358362883,1744996242784,-151.0,0.00021917,2]
[358362885,1744996242793,-500.0,0.00021917,2]
[358362887,1744996242802,-505.15187245,0.00021917,2]
[358362888,1744996242811,-170.104326,0.00021917,2]
[358362890,1744996242820,-500.0,0.00021917,2]
[358362892,1744996242829,-500.0,0.00021917,2]
[358362894,1744996242839,-834.79,0.00021917,2]
[358362896,1744996242848,-849.42,0.00021917,2]
[358362897,1744996242857,-500.0,0.00021917,2]
[358362899,1744996242866,-500.0,0.00021917,2]
[358362901,1744996242876,-289.6661356,0.00021917,2]
[358362903,1744996242886,-500.0,0.00021917,2]
[358362905,1744996242895,-500.0,0.00021917,2]
[358362907,1744996242905,-504.53843148,0.00021917,2]
[358362909,1744996242914,-500.0,0.00021917,2]
[358362911,1744996242923,-500.0,0.00021917,2]
[358362913,1744996242934,-500.0,0.00021917,2]
[358362916,1744996242944,-500.0,0.00021917,2]
[358362917,1744996242953,-500.0,0.00021917,2]
[358362919,1744996242963,-500.0,0.00021917,2]
[358362921,1744996242972,-500.0,0.00021917,2]
[358362924,1744996242981,-523.47,0.00021917,2]
[358362927,1744996242991,-503.53510716,0.00021917,2]
[358362930,1744996243001,-500.0,0.00021917,2]
[358362933,1744996243010,-500.0,0.00021917,2]